{"text_format":"3","workbook":"xlsx","n_sheets":2,"sheets":["PlanningProjet","À propos de"],"not_rendered":{"images":1,"defined_names":7},"read":"whole","date_system":"1900"}

{"sheet":"PlanningProjet","index":0,"n_rows":33,"n_cols":64,"rows_kept":33,"merged":[[2,2,2,3],[2,4,2,5],[3,2,3,3],[3,8,3,14],[3,15,3,21],[3,22,3,28],[3,29,3,35],[3,36,3,42],[3,43,3,49],[3,50,3,56],[3,57,3,63],[4,1,4,6]]}
["Créez un planning projet dans cette feuille de calcul.\nEntrez le titre de ce projet dans la cellule B1. \nDes informations sur l’utilisation de cette feuille de calcul, notamment des instructions pour les lecteurs d’écran et l’auteur de ce classeur, figurent dans la feuille de calcul À propos de.\nContinuez à parcourir la colonne A pour entendre des instructions supplémentaires.","TITRE DU PROJET",{"$nulls":6},"DIAGRAMME DE GANTT SIMPLE par Vertex42.com"]
["Entrez le nom de la société dans la cellule B2.","Nom de la société",{"$nulls":6},"https://www.vertex42.com/ExcelTemplates/simple-gantt-chart.html"]
["Entrez le nom du chef de projet dans la cellule B3. Entrez la date de début du projet dans la cellule E3. Début du projet : l’étiquette figure dans la cellule C3.","Chef de projet","Début du projet :",null,{"$f":"TODAY()","v":"2019-03-27"}]
["La semaine d’affichage dans la cellule E4 représente la semaine de début à afficher dans le planning de projet dans la cellule I4. La date de début du projet est considérée comme étant la semaine 1. Pour modifier la semaine d’affichage, entrez simplement un nouveau numéro de semaine dans la cellule E4.\nLa date de début pour chaque semaine, à commencer par la semaine d’affichage dans la cellule E4, figure dans la cellule I4 et est calculée automatiquement. Cet affichage représente 8 semaines, de cellule I4 à la cellule BF4.\nVous ne devez pas modifier ces cellules.\nSemaine d’affichage : l’étiquette figure dans la cellule C4.",null,"Semaine d’affichage :",null,1,{"$nulls":3},{"$f":"I5","v":"2019-03-25"},{"$nulls":6},{"$f":"P5","v":"2019-04-01"},{"$nulls":6},{"$f":"W5","v":"2019-04-08"},{"$nulls":6},{"$f":"AD5","v":"2019-04-15"},{"$nulls":6},{"$f":"AK5","v":"2019-04-22"},{"$nulls":6},{"$f":"AR5","v":"2019-04-29"},{"$nulls":6},{"$f":"AY5","v":"2019-05-06"},{"$nulls":6},{"$f":"BF5","v":"2019-05-13"}]
["Les cellules I5 à BL5 contiennent le numéro de jour pour la semaine représentée dans le bloc de cellules au-dessus de chaque cellule de date, et leurs valeurs sont calculées automatiquement.\nVous ne devez pas modifier ces cellules.\nLa date du jour est entourée de rouge (hex #AD3815), depuis la date du jour dans la ligne 5 jusqu’à la colonne de date entière à la fin du planning de projet.",{"$nulls":7},{"$f":"_xlfn.SINGLE(Début_Projet)-WEEKDAY(_xlfn.SINGLE(Début_Projet),1)+2+7*(_xlfn.SINGLE(Semaine_Affichage)-1)","v":"2019-03-25"},{"$f":"I5+1","v":"2019-03-26"},{"$f":"J5+1","v":"2019-03-27"},"2019-03-28","2019-03-29","2019-03-30","2019-03-31",{"$f":"O5+1","v":"2019-04-01"},{"$f":"P5+1","v":"2019-04-02"},"2019-04-03","2019-04-04","2019-04-05","2019-04-06","2019-04-07",{"$f":"V5+1","v":"2019-04-08"},{"$f":"W5+1","v":"2019-04-09"},"2019-04-10","2019-04-11","2019-04-12","2019-04-13","2019-04-14",{"$f":"AC5+1","v":"2019-04-15"},{"$f":"AD5+1","v":"2019-04-16"},"2019-04-17","2019-04-18","2019-04-19","2019-04-20","2019-04-21",{"$f":"AJ5+1","v":"2019-04-22"},{"$f":"AK5+1","v":"2019-04-23"},"2019-04-24","2019-04-25","2019-04-26","2019-04-27","2019-04-28",{"$f":"AQ5+1","v":"2019-04-29"},{"$f":"AR5+1","v":"2019-04-30"},"2019-05-01","2019-05-02","2019-05-03","2019-05-04","2019-05-05",{"$f":"AX5+1","v":"2019-05-06"},{"$f":"AY5+1","v":"2019-05-07"},{"$f":"AZ5+1","v":"2019-05-08"},"2019-05-09","2019-05-10","2019-05-11","2019-05-12",{"$f":"BE5+1","v":"2019-05-13"},{"$f":"BF5+1","v":"2019-05-14"},{"$f":"BG5+1","v":"2019-05-15"},"2019-05-16","2019-05-17","2019-05-18","2019-05-19"]
["Cette ligne contient des en-têtes pour le planning de projet figurant en dessous. \nNaviguez des cellules B6 à BL6 pour entendre l’énoncé du contenu. Première lettre de chaque jour de la semaine pour la date figurant au-dessus de cet en-tête. Commence dans la cellule I6, et s’étend jusqu’à la cellule BL6.\nLe tracé de la chronologie du projet est généré automatiquement en fonction des dates de début et de fin entrées, à l’aide de formats conditionnels.\nNe modifiez pas le contenu des cellules des colonnes au-delà de la colonne I commençant à la cellule I7.","TÂCHE","ATTRIBUÉE À","AVANCEMENT","DÉBUT","FIN",null,"JOURS",{"$f":"LEFT(TEXT(I5,\"jjj\"),1)","v":"l"},"m","m","j","v","s","d","l","m","m","j","v","s","d","l","m","m","j","v","s","d","l","m","m","j","v","s","d","l","m","m","j",{"$f":"LEFT(TEXT(AO5,\"jjj\"),1)","v":"v"},"s","d","l","m","m","j","v","s","d","l","m","m","j","v","s","d","l","m","m","j","v","s","d"]
["Ne supprimez pas cette ligne. Cette ligne est masquée afin de préserver une formule utilisée pour mettre en évidence le jour en cours au sein du planning de projet. ",{"$nulls":6},{"$f":"IF(OR(ISBLANK(_xlfn.SINGLE(début_tâche)),ISBLANK(_xlfn.SINGLE(fin_tâche))),\"\",_xlfn.SINGLE(fin_tâche)-_xlfn.SINGLE(début_tâche)+1)","v":""}]
["La cellule B8 contient l’exemple de titre Phase 1. \nEntrez un nouveau titre dans la cellule B8.\nEntrez un nom auquel attribuer la phase, s’il s’applique à votre projet, dans la cellule C8.\nEntrez l’avancement pour la phase entière, si cela s’applique à votre projet, dans la cellule D8.\nEntrez les dates de début et de fin de la phase entière, si cela s’applique à votre projet, dans les cellules E8 et F8. \nLe diagramme de Gantt remplit automatiquement les dates et ombres appropriées en fonction de l’avancement entré.\nPour supprimer la phase et travailler uniquement à partir de tâches, supprimez simplement cette ligne.","Titre Phase 1",{"$nulls":5},""]
["La cellule B9 contient l’exemple de tâche « Tâche 1 ». \nEntrez un nouveau nom de tâche dans la cellule B9.\nEntrez une personne à laquelle attribuer la tâche dans la cellule C9.\nEntrez l’avancement de la tâche dans la cellule D9. Une barre de progression apparaît dans la cellule, qui est ombrée en fonction du nombre figurant dans la cellule. Par exemple, un avancement de 50 pour cent ombre la moitié de la cellule.\nEntrez la date de début de la tâche dans la cellule E9.\nEntrez la date de fin de tâche dans la cellule F9.\nUne barre d’état ombrée pour les dates entrées apparaît dans les blocs de la cellule I9 à la cellule BL9. ","Tâche 1","Nom",{"v":0.5,"d":"50%"},{"$f":"_xlfn.SINGLE(Début_Projet)","v":"2019-03-27"},{"$f":"E9+3","v":"2019-03-30"},null,4]
["Les lignes 10 à 13 répètent le modèle de la ligne 9. \nRépétez les instructions de la cellule A9 pour toutes les lignes de tâche dans cette feuille de calcul. Remplacez les exemples de données.\nUn exemple d’une autre phase commence à la cellule A14. \nContinuez d’entrer des tâches dans les cellules A10 à A13, ou accédez à la cellule A14 pour en savoir plus.","Tâche 2",null,{"v":0.6,"d":"60%"},{"$f":"F9","v":"2019-03-30"},{"$f":"E10+2","v":"2019-04-01"},null,3]
[null,"Tâche 3",null,{"v":0.5,"d":"50%"},{"$f":"F10","v":"2019-04-01"},{"$f":"E11+4","v":"2019-04-05"},null,5]
[null,"Tâche 4",null,{"v":0.25,"d":"25%"},{"$f":"F11","v":"2019-04-05"},{"$f":"E12+5","v":"2019-04-10"},null,6]
[null,"Tâche 5",null,null,{"$f":"E10+1","v":"2019-03-31"},{"$f":"E13+2","v":"2019-04-02"},null,3]
["La cellule à droite contient l’exemple titre Phase 2. \nVous pouvez créer une phase à tout moment dans la colonne B. Ce planning de projet n’exige pas de phases. Pour supprimer la phase, supprimez simplement la ligne.\nPour créer un bloc de nouvelle phase dans cette ligne, entrez un nouveau titre dans la cellule à droite.\nPour ajouter une tâche à la phase au-dessus, entrez une nouvelle ligne au-dessus de celle-ci, puis remplissez-la des données de la tâche comme dans l’instruction de la cellule A9.\nMettez à jour les détails de la phase dans la cellule à droite en fonction de l’instruction de la cellule A8.\nContinuez de naviguer vers le bas dans les cellules de la colonne A pour en savoir plus.\nSi vous n’avez pas ajouté de nouvelles lignes dans cette feuille de calcul, vous constaterez que 2 exemples de blocs de phase supplémentaires ont été créés pour vous dans les cellules B20 et B26. Dans le cas contraire, naviguez dans les cellules de la colonne A pour trouver des blocs supplémentaires. \nRépétez les instructions des cellules A8 et A9 chaque fois que c’est nécessaire.","Titre Phase 2",{"$nulls":5},""]
[null,"Tâche 1",null,{"v":0.5,"d":"50%"},{"$f":"E13+1","v":"2019-04-01"},{"$f":"E15+4","v":"2019-04-05"},null,5]
[null,"Tâche 2",null,{"v":0.5,"d":"50%"},{"$f":"E15+2","v":"2019-04-03"},{"$f":"E16+5","v":"2019-04-08"},null,6]
[null,"Tâche 3",null,null,{"$f":"F16","v":"2019-04-08"},{"$f":"E17+3","v":"2019-04-11"},null,4]
[null,"Tâche 4",null,null,{"$f":"E17","v":"2019-04-08"},{"$f":"E18+2","v":"2019-04-10"},null,3]
[null,"Tâche 5",null,null,{"$f":"E18","v":"2019-04-08"},{"$f":"E19+3","v":"2019-04-11"},null,4]
["Exemple de bloc de titre de phase","Titre Phase 3",{"$nulls":5},""]
[null,"Tâche 1",null,null,{"$f":"E9+15","v":"2019-04-11"},{"$f":"E21+5","v":"2019-04-16"},null,6]
[null,"Tâche 2",null,null,{"$f":"F21+1","v":"2019-04-17"},{"$f":"E22+4","v":"2019-04-21"},null,5]
[null,"Tâche 3",null,null,{"$f":"E22+5","v":"2019-04-22"},{"$f":"E23+5","v":"2019-04-27"},null,6]
[null,"Tâche 4",null,null,{"$f":"F23+1","v":"2019-04-28"},{"$f":"E24+4","v":"2019-05-02"},null,5]
[null,"Tâche 5",null,null,{"$f":"E23","v":"2019-04-22"},{"$f":"E25+4","v":"2019-04-26"},null,5]
["Exemple de bloc de titre de phase","Titre Phase 4",{"$nulls":5},""]
[null,"Tâche 1",null,null,"date","date",null,{"$error":"#VALUE!"}]
[null,"Tâche 2",null,null,"date","date",null,{"$error":"#VALUE!"}]
[null,"Tâche 3",null,null,"date","date",null,{"$error":"#VALUE!"}]
[null,"Tâche 4",null,null,"date","date",null,{"$error":"#VALUE!"}]
[null,"Tâche 5",null,null,"date","date",null,{"$error":"#VALUE!"}]
["Ceci est une ligne vide.",{"$nulls":6},""]
["Cette ligne marque la fin du planning projet. N’ENTREZ rien dans cette ligne. \nInsérez de nouvelles lignes au-dessus de celle-ci pour continuer d’élaborer votre planning projet.","Insérez les nouvelle lignes au-dessus de celle-ci.",{"$nulls":5},""]

{"sheet":"À propos de","index":1,"n_rows":16,"n_cols":1,"rows_kept":16}
[]
["DIAGRAMME DE GANTT SIMPLE par Vertex42.com"]
["https://www.vertex42.com/ExcelTemplates/simple-gantt-chart.html"]
["À propos de ce modèle"]
["Ce modèle fournit un moyen simple de créer un diagramme de Gantt pour vous aider à visualiser et à suivre votre projet. Entrez simplement vos tâches et dates de début et de fin. Aucune formule n’est requise. Les barres du diagramme de Gantt représentent la durée de la tâche et s’affichent avec une mise en forme conditionnelle. Insérez de nouvelles tâches en insérant des lignes."]
["Instructions pour les lecteurs d’écran"]
["Ce classeur contient 2 feuilles de calcul. \n\nPlanningProjet\nÀ propos de\n\nLes instructions relatives à chaque feuille de calcul figurent dans la colonne A à partir de la cellule A1. Elles sont rédigées en texte masqué. Chaque étape vous explique comment utiliser les informations décrites dans la ligne. Les étapes suivantes sont décrites dans les cellules A2, A3, etc. sauf mention contraire. Par exemple, l’instruction peut indiquer de « consulter la cellule A6 » pour l’étape suivante. \n\nCe texte masqué n’est pas imprimé.\n\nPour supprimer ces instructions de la feuille de calcul, supprimez simplement la colonne A."]
["Aide supplémentaire"]
["Cliquez sur le lien ci-dessous pour visiter le site vertex42.com afin d’en savoir plus sur l’utilisation de ce modèle, par exemple, sur la façon de calculer des jours et des jours de travail, de créer des dépendances de tâches, de modifier les couleurs des barres, d’ajouter une barre de défilement pour faciliter le changement de semaine d’affichage, d’étendre la plage de dates affichée dans le diagramme, etc."]
["Comment utiliser le diagramme de Gantt Simple"]
["Autres modèles de gestion de projet"]
["Visitez le site Vertex42.com pour télécharger d’autres modèles de gestion de projet, dont différents types de plannings de projet, diagrammes de Gantt, listes de tâches, etc."]
["Modèles de gestion de projet"]
["À propos de Vertex42"]
["Vertex42.com fournit plus de 300 modèles de feuilles de calcul de conception professionnelle à usage professionnel, personnel ou éducatif, dont la plupart peuvent être téléchargés gratuitement. La collection compte notamment différents calendriers, planificateurs et plannings, ainsi que des feuilles de calcul financières pour la budgétisation, la réduction d’endettement et l’amortissement de prêt."]
["Les entreprises trouveront également des modèles de facture, de feuille de temps, de suivi d’inventaire, d’états financiers et de planification de projet. Les enseignants et les étudiants pourront utiliser des ressources variées, notamment des emplois du temps, des carnets de notes et des feuilles de présence. Organisez votre vie famille avec des planificateurs de repas, des listes de contrôle et des journaux d’entraînement. Chaque modèle est minutieusement étudié, affiné et amélioré au fil du temps grâce aux commentaires de milliers d’utilisateurs."]